bitfinex/quotes_SOLUSD_20250507
["timestamp","ask_amount","ask_price","bid_price","bid_amount"]
[1746619210657,23.33782243,147.88,147.84,23.33782243]
[1746619212170,23.33782243,147.88,147.84,30.10163019]
[1746619212370,23.33782243,147.87,147.84,6.76380776]
[1746619212873,6.76187015,147.89,147.84,6.76380776]
[1746619213051,6.76187015,147.89,147.84,30.10163019]
[1746619213253,23.33782243,147.87,147.84,6.76380776]
[1746619215076,23.33782243,147.88,147.84,30.10163019]
[1746619215765,23.33782243,147.88,147.84,6.76380776]
[1746619215963,23.33782243,147.88,147.84,30.10163019]
[1746619216682,23.33782243,147.88,147.84,6.76380776]
[1746619216883,23.33782243,147.87,147.84,6.76380776]
[1746619217678,23.33782243,147.86,147.8,26.0]
[1746619217876,6.76181109,147.89,147.8,23.33782243]
[1746619217877,23.33782243,147.84,147.8,23.33782243]
[1746619218577,23.33782243,147.84,147.8,30.10372229]
[1746619218775,6.76269696,147.87,147.8,6.76589986]
[1746619219082,144.46245139,147.88,147.81,23.33782243]
[1746619219257,23.33782243,147.85,147.8,30.10372229]
[1746619219455,144.46245139,147.88,147.8,30.10372229]
[1746619219660,23.33782243,147.86,147.81,23.33782243]
[1746619219856,23.33782243,147.86,147.82,23.33782243]
[1746619220353,137.7,147.88,147.82,23.33782243]
[1746619220553,23.33782243,147.86,147.83,6.76452682]
[1746619221780,32.76146284,147.9,147.83,6.76452682]
[1746619221957,23.33782243,147.88,147.83,30.10234925]
[1746619223392,32.76146284,147.9,147.83,30.10234925]
[1746619223563,23.33782243,147.88,147.83,30.10234925]
[1746619224394,14.76722159,147.91,147.86,23.33782243]
[1746619224566,163.7,147.92,147.89,23.33782243]
[1746619224770,137.7,147.92,147.89,23.33782243]
[1746619225577,137.7,147.92,147.9,30.09895874]
[1746619225780,137.7,147.92,147.9,23.33782243]
[1746619227298,137.7,147.92,147.89,30.09953329]
[1746619227792,137.7,147.92,147.9,23.33782243]
[1746619228797,137.7,147.92,147.89,23.33782243]
[1746619229100,137.7,147.92,147.9,23.33782243]
[1746619229274,137.7,147.92,147.89,23.33782243]
[1746619229471,56.09737349,147.94,147.89,23.33782243]
[1746619229472,23.33782243,147.93,147.89,23.33782243]
[1746619230201,32.75955106,147.94,147.89,23.33782243]
[1746619230202,56.09737349,147.94,147.89,30.09927875]
[1746619230603,32.75955106,147.94,147.9,23.33782243]
[1746619230790,56.09737349,147.94,147.9,23.33782243]
[1746619230990,56.09737349,147.94,147.89,30.09927875]
[1746619231998,23.33782243,147.93,147.89,30.09927875]
[1746619232299,32.75955106,147.94,147.89,30.09927875]
[1746619232485,23.33782243,147.93,147.88,30.09990206]
[1746619233099,32.75955106,147.94,147.88,30.09990206]
[1746619233292,23.33782243,147.93,147.88,30.09990206]
[1746619233777,30.09823317,147.93,147.88,23.33782243]
[1746619234306,30.09823317,147.93,147.88,30.09992957]
[1746619234495,30.09823317,147.93,147.89,23.33782243]
[1746619236604,23.33782243,147.93,147.89,30.09959325]
[1746619237104,23.33782243,147.92,147.88,30.09988377]
[1746619237404,23.33782243,147.91,147.88,6.76206134]
[1746619238307,23.33782243,147.92,147.88,30.09988377]
[1746619242517,23.33782243,147.92,147.85,23.67249074]
[1746619242806,23.33782243,147.92,147.88,23.33782243]
[1746619245308,23.33782243,147.92,147.88,30.09997554]
[1746619250338,30.09834311,147.92,147.88,6.76215311]
[1746619250533,30.09834311,147.92,147.88,30.09997554]
[1746619251025,23.33782243,147.91,147.85,16.90887898]
[1746619251341,23.33782243,147.91,147.87,23.33782243]
[1746619253027,23.33782243,147.91,147.87,30.10040835]
[1746619257750,6.75995403,147.93,147.87,30.10040835]
[1746619257930,23.33782243,147.91,147.87,30.10040835]
[1746619260030,23.33782243,147.93,147.9,23.33782243]
[1746619260757,23.33782243,147.93,147.89,23.33782243]
[1746619261547,163.7,147.94,147.9,23.33782243]
[1746619261754,163.7,147.94,147.91,23.33782243]
[1746619263056,187.03782243,147.94,147.91,23.33782243]
[1746619263254,187.03782243,147.94,147.91,30.09858628]
[1746619264251,187.03782243,147.94,147.9,23.33782243]
[1746619265052,23.33782243,147.93,147.89,23.33782243]
[1746619267361,23.33782243,147.93,147.9,6.76132521]
[1746619267653,23.33782243,147.92,147.89,6.7615875]
[1746619268162,23.33782243,147.92,147.88,23.33782243]
[1746619268163,23.33782243,147.9,147.86,6.76315433]
[1746619268370,23.33782243,147.9,147.86,30.10097676]
[1746619271062,23.33782243,147.89,147.86,6.76315433]
[1746619271242,23.33782243,147.88,147.86,6.76315433]
[1746619272157,23.33782243,147.87,147.83,15.68]
[1746619272458,23.33782243,147.86,147.84,6.76406828]
[1746619272662,23.33782243,147.87,147.84,6.76406828]
[1746619273664,137.7,147.9,147.84,6.76406828]
[1746619273850,23.33782243,147.89,147.84,47.01206387]
[1746619274363,23.33782243,147.88,147.84,47.01206387]
[1746619277269,23.33782243,147.89,147.84,47.01206387]
[1746619277468,137.7,147.9,147.86,30.10069188]
[1746619277971,137.7,147.9,147.88,23.33782243]
[1746619278274,23.33782243,147.92,147.88,23.33782243]
[1746619279778,30.09834608,147.92,147.88,23.33782243]
[1746619280072,30.09834608,147.92,147.88,30.10005334]
[1746619281777,23.33782243,147.91,147.88,30.10005334]
[1746619281969,23.33782243,147.91,147.87,23.33782243]
[1746619282679,137.7,147.93,147.89,23.33782243]
[1746619282977,161.03782243,147.93,147.89,23.33782243]
[1746619283279,137.7,147.93,147.9,23.33782243]
[1746619283983,137.7,147.93,147.92,23.33782243]
[1746619284481,137.7,147.93,147.89,6.76168879]
[1746619284669,161.03782243,147.93,147.85,16.90902942]
[1746619284881,161.03782243,147.93,147.88,23.33782243]
[1746619285197,161.03782243,147.93,147.89,23.33782243]
[1746619285791,167.79777646,147.93,147.89,23.33782243]
[1746619286190,144.45995403,147.93,147.89,23.33782243]
[1746619287395,144.45995403,147.93,147.89,30.099484]
[1746619288795,167.79777646,147.93,147.89,30.099484]
[1746619289193,167.79777646,147.93,147.88,23.33782243]
[1746619291295,23.33782243,147.92,147.88,30.09974427]
[1746619291694,23.33782243,147.89,147.88,6.76192184]
[1746619292198,23.33782243,147.89,147.83,15.68]
[1746619292397,23.33782243,147.89,147.81,26.0]
[1746619292398,23.33782243,147.85,147.81,6.76544212]
[1746619292582,23.33782243,147.84,147.81,6.76544212]
[1746619292781,23.33782243,147.83,147.81,6.76544212]
[1746619293099,23.33782243,147.82,147.8,6.76569932]
[1746619293504,23.33782243,147.83,147.8,6.76569932]
[1746619294393,23.33782243,147.82,147.8,6.76569932]
[1746619294795,23.33782243,147.82,147.79,22.44617048]
[1746619294997,23.33782243,147.81,147.79,22.44617048]
[1746619295301,23.33782243,147.81,147.79,6.76617048]
[1746619296198,23.33782243,147.81,147.77,49.33782243]
[1746619296495,23.33782243,147.81,147.78,6.76681553]
[1746619297699,23.33782243,147.82,147.78,6.76681553]
[1746619298403,23.33782243,147.82,147.78,30.10463796]
[1746619299502,23.33782243,147.82,147.78,6.76681553]
[1746619299706,23.33782243,147.82,147.78,30.10463796]
[1746619300313,23.33782243,147.83,147.79,23.33782243]
[1746619300493,23.33782243,147.84,147.8,23.33782243]
[1746619301089,161.03782243,147.85,147.8,23.33782243]
[1746619301516,23.33782243,147.84,147.81,6.76544212]
[1746619302818,23.33782243,147.82,147.8,6.7657162]
[1746619303916,23.33782243,147.82,147.79,6.76635766]
[1746619305413,23.33782243,147.81,147.76,1.6]
[1746619305713,23.33782243,147.8,147.75,66.25725903]
[1746619306896,23.33782243,147.8,147.76,6.76773145]
[1746619307216,23.33782243,147.8,147.76,30.10555388]
[1746619308015,137.7,147.83,147.78,23.33782243]
[1746619308227,24.85532243,147.84,147.8,23.33782243]
[1746619310219,23.33782243,147.84,147.81,6.76544212]
[1746619313524,6.5351,147.85,147.81,6.76544212]
[1746619313819,23.33782243,147.84,147.81,6.76544212]
[1746619314311,29.87292243,147.85,147.81,30.10326455]
[1746619314519,23.33782243,147.85,147.81,30.10326455]
[1746619320726,6.76317152,147.86,147.83,23.33782243]
[1746619320922,6.76317152,147.86,147.82,23.33782243]
[1746619320923,23.33782243,147.86,147.82,23.33782243]
[1746619321313,23.33782243,147.85,147.81,23.33782243]
[1746619322131,30.10107737,147.86,147.82,23.33782243]
[1746619322329,30.10107737,147.86,147.81,23.33782243]
[1746619323435,23.33782243,147.82,147.79,15.68]
[1746619323628,23.33782243,147.81,147.79,22.44616286]
[1746619323939,23.33782243,147.8,147.78,6.76662256]
[1746619324255,23.33782243,147.79,147.76,6.76773145]
[1746619324417,23.33782243,147.78,147.76,6.76773145]
[1746619325434,23.33782243,147.79,147.76,6.76773145]
[1746619329443,23.33782243,147.8,147.76,30.10555388]
[1746619329648,23.33782243,147.79,147.76,6.76773145]
[1746619330753,23.33782243,147.77,147.76,6.76773145]
[1746619331049,23.33782243,147.78,147.76,6.76773145]
[1746619335555,5.0501864,147.77,147.76,6.76773145]
[1746619336448,5.0501864,147.77,147.76,30.10555388]
[1746619336644,5.0501864,147.77,147.76,79.44337631]
[1746619337937,6.0742,147.84,147.76,96.36270495]
[1746619338454,6.0742,147.84,147.81,23.33782243]
[1746619338951,23.33782243,147.82,147.77,30.10489176]
[1746619339159,23.33782243,147.8,147.77,6.76706933]
[1746619339333,23.33782243,147.81,147.77,6.76706933]
[1746619342353,23.33782243,147.8,147.76,6.76753833]
[1746619342539,23.33782243,147.79,147.76,6.76753833]
[1746619343139,23.33782243,147.8,147.76,30.10536076]
[1746619344659,137.7,147.81,147.78,23.33782243]
[1746619344863,137.7,147.81,147.79,23.33782243]
[1746619345465,137.7,147.81,147.8,23.33782243]
[1746619345765,137.7,147.81,147.79,23.33782243]
[1746619346440,137.7,147.81,147.78,23.33782243]
[1746619347076,137.7,147.81,147.78,30.10433504]
[1746619348539,137.7,147.81,147.78,6.76651261]
[1746619348845,137.7,147.81,147.78,30.10433504]
[1746619349551,137.7,147.81,147.78,23.33782243]
[1746619350777,23.33782243,147.8,147.75,6.7681895]
[1746619351070,23.33782243,147.78,147.75,6.7681895]
[1746619351368,23.33782243,147.76,147.74,22.44843331]
[1746619351667,23.33782243,147.75,147.73,6.76905449]
[1746619352271,23.33782243,147.76,147.73,6.76905449]
[1746619352775,23.33782243,147.76,147.71,23.33782243]
[1746619352963,23.33782243,147.76,147.72,30.10738647]
[1746619354272,23.33782243,147.76,147.72,6.76956404]
[1746619354477,23.33782243,147.74,147.72,6.76956404]
[1746619355369,23.33782243,147.74,147.71,6.77002234]
[1746619357470,23.33782243,147.72,147.68,6.77139761]
[1746619357795,23.33782243,147.71,147.68,6.77139761]
[1746619358657,23.33782243,147.72,147.68,6.77139761]
[1746619359482,23.33782243,147.72,147.68,30.10922004]
[1746619359782,23.33782243,147.7,147.68,6.77139761]
[1746619360804,23.33782243,147.71,147.67,6.77185616]
[1746619362799,23.33782243,147.71,147.67,30.10967859]
[1746619363304,6.7691058,147.73,147.67,30.10967859]
[1746619363507,23.33782243,147.71,147.67,30.10967859]
[1746619363679,6.7691058,147.73,147.67,30.10967859]
[1746619363878,23.33782243,147.71,147.67,30.10967859]
[1746619364704,137.7,147.73,147.68,23.33782243]
[1746619364878,161.03782243,147.73,147.69,23.33782243]
[1746619366709,137.7,147.73,147.69,30.10835867]
[1746619366901,161.03782243,147.73,147.69,30.10835867]
[1746619367601,137.7,147.73,147.7,23.33782243]
[1746619367786,1.5645,147.76,147.72,23.33782243]
[1746619367976,23.33782243,147.77,147.73,23.33782243]
[1746619368600,29.87592243,147.78,147.74,23.33782243]
[1746619369988,23.33782243,147.76,147.72,6.76939644]
[1746619370302,23.33782243,147.76,147.72,30.10721887]
[1746619371003,23.33782243,147.74,147.68,6.77139761]
[1746619371307,23.33782243,147.73,147.69,23.33782243]
[1746619371810,23.33782243,147.73,147.69,30.10832813]
[1746619371988,30.10703487,147.73,147.69,23.33782243]
[1746619372309,23.33782243,147.73,147.69,30.10872904]
[1746619374808,23.33782243,147.73,147.7,23.33782243]
[1746619375011,30.10667814,147.74,147.7,23.33782243]
[1746619375409,23.33782243,147.74,147.7,23.33782243]
[1746619376406,137.7,147.76,147.73,23.33782243]
[1746619376610,144.46775007,147.76,147.74,23.33782243]
[1746619377312,144.46775007,147.76,147.73,23.33782243]
[1746619378311,137.7,147.76,147.73,23.33782243]
[1746619380315,137.7,147.76,147.72,30.10712371]
[1746619381716,144.46776689,147.76,147.72,30.10712371]
[1746619381918,144.46776689,147.76,147.72,23.33782243]
[1746619382716,144.46776689,147.76,147.72,30.10730812]
[1746619383521,23.33782243,147.73,147.7,6.7704807]
[1746619383713,23.33782243,147.71,147.7,6.7704807]
[1746619384104,23.33782243,147.71,147.68,6.77139761]
[1746619388128,23.33782243,147.69,147.67,6.77172904]
[1746619388502,23.33782243,147.7,147.67,6.77172904]
[1746619389529,23.33782243,147.69,147.65,40.2687205]
[1746619390228,23.33782243,147.7,147.65,40.2687205]
[1746619391331,23.33782243,147.7,147.67,6.77185616]
[1746619394036,23.33782243,147.71,147.67,6.77185616]
[1746619395042,23.33782243,147.71,147.67,30.10967859]
[1746619395540,23.33782243,147.71,147.65,16.93089807]
[1746619395740,23.33782243,147.7,147.66,23.33782243]
[1746619395946,23.33782243,147.7,147.65,40.2687205]
[1746619396441,23.33782243,147.7,147.66,23.33782243]
[1746619396640,23.33782243,147.71,147.66,23.33782243]
[1746619396939,6.4899,147.73,147.66,26.0]
[1746619397131,6.4899,147.73,147.7,23.33782243]
[1746619398655,6.4899,147.73,147.71,23.33782243]
[1746619400435,146.03517508,147.75,147.71,23.33782243]
[1746619401171,169.37299751,147.75,147.71,23.33782243]
[1746619401363,146.03517508,147.75,147.71,23.33782243]
[1746619402658,169.37299751,147.75,147.71,23.33782243]
[1746619402860,139.2667,147.75,147.72,23.33782243]
[1746619403059,32.76790173,147.76,147.73,23.33782243]
[1746619403447,26.0,147.76,147.73,23.33782243]
[1746619403858,26.0,147.76,147.74,23.33782243]
[1746619404063,39.16084429,147.77,147.74,23.33782243]
[1746619404255,39.16084606,147.77,147.71,6.76995236]
[1746619404557,62.49866849,147.77,147.73,23.33782243]
[1746619405952,62.49866849,147.77,147.72,23.33782243]
[1746619406464,137.7,147.76,147.72,23.33782243]
[1746619407763,137.7,147.76,147.73,23.33782243]
[1746619408066,144.46785758,147.76,147.73,23.33782243]
[1746619409174,144.46785758,147.76,147.72,23.33782243]
[1746619409672,23.33782243,147.74,147.7,23.33782243]
[1746619409973,23.33782243,147.73,147.69,30.10876155]
[1746619410156,23.33782243,147.7,147.67,6.77173286]
[1746619410357,23.33782243,147.69,147.67,6.77173286]
[1746619411169,23.33782243,147.69,147.66,6.77231477]
[1746619411361,6.76992078,147.72,147.66,6.77231477]
[1746619411362,23.33782243,147.7,147.66,6.77231477]
[1746619411873,23.33782243,147.69,147.66,6.77231477]
[1746619412748,23.33782243,147.67,147.65,15.7]
[1746619413074,23.33782243,147.67,147.64,6.77279788]
[1746619413275,23.33782243,147.67,147.63,23.33782243]
[1746619414177,23.33782243,147.67,147.62,23.70952445]
[1746619414369,23.33782243,147.67,147.63,23.33782243]
[1746619414852,23.33782243,147.64,147.62,6.77414984]
[1746619415366,23.33782243,147.64,147.61,39.41110777]
[1746619415570,23.33782243,147.65,147.61,39.41110777]
[1746619416152,23.33782243,147.64,147.61,39.41110777]
[1746619417181,23.33782243,147.64,147.61,23.71110777]
[1746619417987,23.33782243,147.65,147.61,23.71110777]
[1746619418787,23.33782243,147.65,147.61,47.0489302]
[1746619419963,8.3088879,147.69,147.61,47.0489302]
[1746619420280,23.33782243,147.65,147.61,47.0489302]
[1746619421579,23.33782243,147.66,147.62,23.33782243]
[1746619422783,23.33782243,147.67,147.63,23.33782243]
[1746619423185,137.7,147.68,147.64,23.33782243]
[1746619423485,137.7,147.68,147.65,23.33782243]
[1746619424785,137.7,147.68,147.66,6.77231477]
[1746619427593,137.7,147.68,147.61,33.87304383]
[1746619427594,170.03,147.71,147.67,23.33782243]
[1746619427779,170.03,147.71,147.69,23.33782243]
[1746619428092,170.03,147.71,147.68,23.33782243]
[1746619429472,170.03,147.71,147.69,23.33782243]
[1746619429783,170.03,147.71,147.69,30.10849486]
[1746619430403,170.03,147.71,147.69,6.77067243]
[1746619430583,170.03,147.71,147.68,30.1090286]
[1746619432900,170.03,147.71,147.68,6.77120617]
[1746619433192,23.33782243,147.7,147.66,23.33782243]
[1746619433388,23.33782243,147.68,147.65,6.77277345]
[1746619435817,23.33782243,147.69,147.65,30.11059588]
[1746619437508,23.33782243,147.68,147.65,6.77277345]
[1746619438213,23.33782243,147.67,147.65,6.77277345]
[1746619439318,23.33782243,147.66,147.65,6.77277345]
[1746619440118,161.03782243,147.7,147.64,16.9329255]
[1746619440423,23.33782243,147.66,147.64,16.9329255]
[1746619442324,23.33782243,147.67,147.64,16.9329255]
[1746619442894,23.33782243,147.68,147.64,16.9329255]
[1746619443328,23.33782243,147.68,147.64,40.27074793]
[1746619443911,137.7,147.7,147.64,40.27074793]
[1746619444101,23.33782243,147.68,147.64,40.27074793]
[1746619444316,23.33782243,147.68,147.64,16.9329255]
[1746619445926,161.03782243,147.7,147.66,23.33782243]
[1746619446098,163.7,147.73,147.69,23.33782243]
[1746619446427,163.7,147.73,147.7,23.33782243]
[1746619446926,163.7,147.73,147.7,30.10822655]
[1746619447921,163.7,147.73,147.7,6.77040412]
[1746619448825,187.03782243,147.73,147.7,6.77040412]
[1746619450027,187.03782243,147.73,147.69,30.10854512]
[1746619450735,30.10741179,147.72,147.68,30.10900348]
[1746619451033,23.33782243,147.7,147.66,6.77231477]
[1746619451238,23.33782243,147.7,147.67,23.33782243]
[1746619452230,23.33782243,147.72,147.68,30.10922004]
[1746619453547,170.46931949,147.73,147.68,30.10922004]
[1746619453726,187.03782243,147.73,147.68,6.77139761]
[1746619453912,187.03782243,147.73,147.69,23.33782243]
[1746619454835,161.03782243,147.73,147.69,23.33782243]
[1746619455235,161.03782243,147.73,147.7,23.33782243]
[1746619455738,167.80700151,147.73,147.64,23.70631264]
[1746619455941,23.33782243,147.72,147.69,23.33782243]
[1746619456239,144.46917908,147.73,147.71,23.33782243]
[1746619456418,137.7,147.73,147.71,23.33782243]
[1746619459067,137.7,147.73,147.7,23.33782243]
[1746619460263,137.7,147.73,147.7,30.10827603]
[1746619461963,23.33782243,147.72,147.69,6.77093912]
[1746619462171,23.33782243,147.7,147.67,6.77185616]
[1746619462350,18.64964886,147.72,147.65,24.07503815]
[1746619462538,23.33782243,147.68,147.65,24.07503815]
[1746619462873,23.33782243,147.68,147.65,8.37503815]
[1746619464449,23.33782243,147.69,147.65,31.71286058]
[1746619467252,23.33782243,147.68,147.65,8.37503815]
[1746619468677,23.33782243,147.68,147.65,6.77263815]
[1746619469274,23.33782243,147.66,147.63,6.77369098]
[1746619469479,23.33782243,147.65,147.63,6.77369098]
[1746619474585,23.33782243,147.66,147.63,6.77369098]
[1746619474877,23.33782243,147.68,147.65,6.77277345]
[1746619475283,163.7,147.72,147.67,23.33782243]
[1746619475460,23.33782243,147.71,147.66,23.33782243]
[1746619476779,23.33782243,147.7,147.66,23.33782243]
[1746619477973,23.33782243,147.7,147.67,6.77185616]
[1746619482580,23.33782243,147.71,147.67,23.33782243]
[1746619483790,137.7,147.72,147.64,16.93308046]
[1746619483980,137.7,147.72,147.7,23.33782243]
[1746619485380,137.7,147.72,147.69,23.33782243]
[1746619486580,137.7,147.72,147.69,30.10870095]
[1746619488380,137.7,147.72,147.69,6.77087852]
[1746619489078,23.33782243,147.7,147.68,6.77117425]
[1746619489264,23.33782243,147.69,147.68,6.77117425]
[1746619489665,23.33782243,147.69,147.66,6.77231477]
[1746619489868,23.33782243,147.68,147.66,6.77231477]
[1746619490073,23.33782243,147.67,147.63,39.03782243]
[1746619490784,23.33782243,147.67,147.64,6.77323218]
[1746619491885,23.33782243,147.65,147.63,22.47350377]
[1746619492185,23.33782243,147.66,147.63,22.47350377]
[1746619493486,23.33782243,147.66,147.63,45.8113262]
[1746619494086,23.33782243,147.67,147.63,45.8113262]
[1746619495092,23.33782243,147.67,147.63,22.47350377]
[1746619495694,23.33782243,147.66,147.63,22.47350377]
[1746619495879,23.33782243,147.67,147.63,22.47350377]
[1746619496910,31.15222243,147.7,147.63,45.8113262]
[1746619497196,23.33782243,147.66,147.63,22.47350377]
[1746619497970,23.33782243,147.65,147.63,22.47350377]
[1746619498995,23.33782243,147.66,147.63,22.47350377]
[1746619499482,23.33782243,147.66,147.63,6.77350377]
[1746619500597,23.33782243,147.67,147.63,6.77350377]
[1746619501699,23.33782243,147.66,147.63,6.77350377]
[1746619501903,23.33782243,147.66,147.62,30.11197227]
[1746619503305,23.33782243,147.67,147.64,6.77323218]
[1746619504509,23.33782243,147.68,147.64,30.11105461]
[1746619508815,23.33782243,147.68,147.63,23.33782243]
[1746619510018,161.03782243,147.69,147.65,23.33782243]
[1746619510246,137.7,147.69,147.66,23.33782243]
[1746619510742,137.7,147.69,147.62,23.70952445]
[1746619510944,137.7,147.69,147.66,23.33782243]
[1746619511115,137.7,147.69,147.68,23.33782243]
[1746619513042,137.7,147.69,147.67,23.33782243]
[1746619514443,56.10795914,147.71,147.67,23.33782243]
[1746619516549,23.33782243,147.68,147.62,16.93537461]
[1746619516745,23.33782243,147.67,147.63,23.33782243]
[1746619518054,23.33782243,147.67,147.63,30.11134908]
[1746619522875,137.7,147.7,147.63,30.11134908]
[1746619522876,23.33782243,147.66,147.63,6.77352665]
[1746619523369,23.33782243,147.65,147.63,6.77352665]
[1746619524061,22.69746243,147.64,147.63,6.77352665]
[1746619524654,22.69746243,147.64,147.6,23.71253555]
[1746619525057,137.7,147.68,147.6,6.77506775]
[1746619525058,23.33782243,147.62,147.6,6.77506775]
[1746619525271,23.33782243,147.63,147.6,6.77506775]
[1746619525476,23.33782243,147.62,147.6,6.77506775]
[1746619526573,23.33782243,147.63,147.6,6.77506775]
[1746619530476,137.7,147.67,147.62,23.33782243]
[1746619530649,144.4719625,147.67,147.62,30.1115926]
[1746619530852,167.80978493,147.67,147.63,23.33782243]
[1746619531053,23.33782243,147.66,147.62,6.77377017]
[1746619531271,23.33782243,147.66,147.62,30.1115926]
[1746619531880,23.33782243,147.66,147.6,23.71273712]
[1746619532173,23.33782243,147.64,147.6,6.77506775]
[1746619532376,23.33782243,147.64,147.6,30.11289018]
[1746619536184,23.33782243,147.64,147.6,30.11287605]
[1746619536579,30.11079158,147.65,147.61,23.33782243]
[1746619537680,30.11079158,147.65,147.59,6.77552679]
[1746619537880,1.5657,147.66,147.59,6.77552679]
[1746619538065,1.5657,147.66,147.64,23.33782243]
[1746619538579,1.5657,147.66,147.63,23.33782243]
[1746619539786,8.33808524,147.66,147.63,23.33782243]
[1746619540656,31.67590767,147.66,147.62,23.33782243]
[1746619541159,8.33808524,147.66,147.62,23.33782243]
[1746619542480,8.33808524,147.66,147.61,6.77458427]
[1746619543383,8.33808524,147.66,147.59,6.77552679]
[1746619543684,23.40393916,147.63,147.59,6.77552679]
[1746619543884,23.40393916,147.62,147.58,7.2627252]
[1746619544083,23.40393916,147.61,147.58,0.486772]
[1746619544579,23.40393916,147.6,147.58,0.486772]
[1746619545583,23.40393916,147.59,147.58,0.486772]
[1746619546260,30.17946595,147.59,147.58,0.486772]
[1746619546977,23.40393916,147.59,147.58,0.486772]
[1746619548183,30.17946595,147.59,147.58,0.486772]
[1746619550485,55.15251481,147.59,147.58,0.486772]
[1746619550695,81.15251481,147.59,147.58,0.486772]
[1746619553188,18.64964886,147.55,147.47,26.0]
[1746619553387,23.40393916,147.52,147.47,32.78088066]
[1746619553860,23.40393916,147.51,147.47,32.78088066]
[1746619554286,23.40393916,147.51,147.47,6.78088066]
[1746619555590,23.40393916,147.52,147.47,6.78088066]
[1746619556263,137.7,147.54,147.47,23.73348118]
[1746619556972,137.7,147.54,147.47,49.73348118]
[1746619557891,161.10393916,147.54,147.47,49.73348118]
[1746619558479,137.7,147.54,147.47,49.73348118]
[1746619559988,163.7,147.58,147.47,49.73348118]
[1746619560165,163.7,147.58,147.47,55.89168118]
[1746619560166,23.40393916,147.56,147.47,55.89168118]
[1746619560571,23.40393916,147.57,147.47,55.89168118]
[1746619560877,23.40393916,147.56,147.47,55.89168118]
[1746619561071,23.40393916,147.57,147.47,55.89168118]
[1746619561283,187.10393916,147.58,147.49,23.73042239]
[1746619561579,161.10393916,147.58,147.49,23.73042239]
[1746619561770,137.7,147.58,147.5,26.0]
[1746619561965,137.7,147.58,147.51,1.5696]
[1746619563500,144.47599256,147.58,147.52,6.77874186]
[1746619565098,167.87993172,147.58,147.51,8.34858432]
[1746619565299,23.40393916,147.57,147.51,6.77898432]
[1746619565595,6.77690431,147.56,147.5,22.77898432]
[1746619566796,6.77644507,147.57,147.51,6.77898432]
[1746619568499,26.0,147.56,147.5,6.77966101]
[1746619570303,32.7770527,147.56,147.5,6.77966101]
[1746619570479,26.0,147.55,147.5,6.77966101]
[1746619571101,49.40393916,147.55,147.49,22.49990241]
[1746619571302,23.40393916,147.54,147.49,22.49990241]
[1746619571890,23.40393916,147.53,147.49,22.49990241]
[1746619573210,30.18223152,147.53,147.49,22.49990241]
[1746619573506,6.77829236,147.53,147.49,22.49990241]
[1746619573806,30.18192563,147.54,147.49,22.49990241]
[1746619575201,30.18192563,147.54,147.49,6.77990241]
[1746619576101,30.18192563,147.54,147.48,1.5877]
[1746619576102,23.40393916,147.52,147.48,1.5877]
[1746619576311,23.40393916,147.53,147.48,1.5877]
[1746619576603,23.40393916,147.51,147.46,22.58139963]
[1746619577509,23.40393916,147.49,147.46,22.58139963]
[1746619577807,23.40393916,147.48,147.46,15.8]
[1746619578401,23.40393916,147.49,147.46,15.8]
[1746619580291,30.18393581,147.5,147.46,15.8]
[1746619581296,30.18393581,147.5,147.45,6.78195765]
[1746619582605,23.40393916,147.51,147.45,6.78195765]
[1746619582780,23.40393916,147.5,147.44,8.32647302]
[1746619583706,6.78012068,147.49,147.44,8.32647302]
[1746619586409,6.77920141,147.51,147.44,8.32647302]
[1746619588819,6.77874186,147.52,147.44,8.32647302]
[1746619590522,6.77874186,147.52,147.44,25.28252293]
[1746619591011,144.47834882,147.53,147.46,44.64964886]
[1746619591310,137.7,147.53,147.47,15.8]
[1746619591510,6.7780178,147.54,147.47,15.8]
[1746619591701,6.77690431,147.56,147.48,18.64964886]
[1746619591904,6.77690431,147.56,147.49,1.5453]
[1746619592518,6.77690431,147.56,147.49,8.32525912]
[1746619592908,6.77690431,147.56,147.49,1.5453]
[1746619593103,31.74594347,147.56,147.47,98.3]
[1746619593417,48.68820424,147.56,147.47,98.3]
[1746619593611,25.28426508,147.56,147.47,105.08101677]
[1746619594003,48.68820424,147.56,147.47,105.08101677]
[1746619594212,25.28426508,147.56,147.47,105.08101677]
[1746619594396,48.68820424,147.56,147.47,105.08101677]
[1746619595435,48.68820424,147.56,147.47,22.58101677]
[1746619597332,6.77782296,147.54,147.47,22.58101677]
[1746619598920,23.72238036,147.54,147.47,15.8]
[1746619599520,23.72238036,147.54,147.47,22.58091343]
[1746619599822,23.40393916,147.53,147.47,15.8]
[1746619600159,23.40393916,147.51,147.47,15.8]
[1746619600727,23.40393916,147.51,147.45,1.5798]
[1746619601108,23.40393916,147.5,147.45,1.5798]
[1746619601315,23.40393916,147.5,147.44,41.8]
[1746619601521,6.78058041,147.48,147.44,48.58225257]